bitfinex/quotes_ETHUSD_20240614
["timestamp","ask_amount","ask_price","bid_price","bid_amount"]
[1718385200499,0.61108802,3397.7,3396.4,0.05887374]
[1718385200816,0.61108802,3397.7,3396.5,2.81892703]
[1718385200817,0.03403649,3397.6,3396.5,2.81892703]
[1718385200997,0.03403649,3397.6,3396.5,2.26892703]
[1718385201198,3.58839451,3397.6,3396.5,1.43344514]
[1718385201398,0.61108802,3397.5,3396.5,1.43344514]
[1718385201793,0.03451513,3397.4,3396.5,1.43344514]
[1718385202234,0.61108802,3397.5,3396.5,1.43344514]
[1718385202436,0.03421155,3397.3,3396.5,1.43344514]
[1718385202634,0.61108802,3397.4,3396.5,2.20803965]
[1718385202635,0.64534878,3397.4,3396.5,2.20803965]
[1718385202843,0.64534878,3397.4,3396.2,3.3125]
[1718385202844,2.9437,3397.1,3396.2,3.3125]
[1718385203001,2.9437,3397.1,3396.2,1.43344514]
[1718385203344,0.61108802,3396.9,3396.2,1.43344514]
[1718385203546,0.43681655,3396.9,3396.2,1.43344514]
[1718385203701,0.03436368,3396.8,3396.2,1.43344514]
[1718385204630,0.61108802,3397.0,3396.2,1.43344514]
[1718385204826,0.03431447,3396.7,3396.2,1.43344514]
[1718385205068,0.61108802,3397.0,3396.2,1.43344514]
[1718385205195,0.03426525,3396.6,3396.2,1.43344514]
[1718385205403,0.61108802,3397.1,3396.3,1.43344514]
[1718385205637,0.61108802,3397.2,3396.3,1.43344514]
[1718385205802,0.03441099,3397.0,3396.3,1.43344514]
[1718385206003,0.03433879,3397.1,3396.3,1.43344514]
[1718385206205,0.03439401,3396.9,3396.3,1.43344514]
[1718385206634,0.61108802,3397.2,3396.3,1.43344514]
[1718385206838,0.03363952,3396.8,3396.3,1.43344514]
[1718385207053,0.61108802,3397.1,3396.3,1.43344514]
[1718385207252,0.03415094,3396.7,3396.3,1.43344514]
[1718385207550,0.03354105,3396.6,3396.3,1.43344514]
[1718385207748,0.03354105,3396.6,3396.4,4.54364514]
[1718385208037,0.61108802,3397.3,3396.5,1.00436451]
[1718385208243,0.61108802,3397.4,3396.6,1.43344514]
[1718385208546,0.0333941,3397.3,3396.6,1.43344514]
[1718385208906,0.64448212,3397.3,3396.6,1.43344514]
[1718385209322,0.64448212,3397.3,3396.7,0.55480097]
[1718385209602,0.64448212,3397.3,3396.8,1.43344514]
[1718385212539,0.0333941,3397.3,3396.9,0.05887087]
[1718385212865,0.0333941,3397.3,3397.0,1.43344514]
[1718385213091,0.0333941,3397.3,3397.1,0.20809859]
[1718385213237,0.61108802,3398.1,3397.2,5.31154514]
[1718385213577,0.0343527,3398.0,3397.3,3.0]
[1718385213752,0.0343527,3398.0,3397.4,1.49230615]
[1718385214109,0.61108802,3398.2,3397.4,1.49230615]
[1718385214242,0.91881337,3398.4,3397.4,1.49230615]
[1718385214243,0.03435462,3397.9,3397.5,0.83704062]
[1718385214438,0.61108802,3398.6,3397.6,1.49230251]
[1718385214745,0.64577343,3398.5,3397.6,1.49230251]
[1718385215351,0.03468541,3398.5,3397.6,1.49230251]
[1718385215552,0.64577343,3398.5,3397.6,1.49230251]
[1718385215764,0.03468541,3398.5,3397.7,0.23293431]
[1718385215973,0.03468541,3398.5,3397.8,1.43344514]
[1718385217588,0.61108802,3398.6,3397.8,1.43344514]
[1718385217745,0.03443579,3398.4,3397.2,3.3281]
[1718385217950,0.61108802,3398.3,3397.3,4.43344514]
[1718385218187,0.61108802,3398.3,3397.3,3.0]
[1718385218188,0.45071195,3398.2,3397.3,3.0]
[1718385218573,0.03497025,3398.1,3397.3,3.0]
[1718385219651,0.03497025,3398.1,3397.4,1.43344514]
[1718385220061,0.61108802,3398.5,3397.4,1.43344514]
[1718385220290,0.03444063,3398.4,3397.4,1.43344514]
[1718385220491,0.03444063,3398.4,3397.4,1.85975408]
[1718385220920,0.64552865,3398.4,3397.4,1.85975408]
[1718385221279,0.03444063,3398.4,3397.4,1.85975408]
[1718385224629,0.03444063,3398.4,3397.5,0.0588604]
[1718385224832,0.03444063,3398.4,3397.6,1.43344514]
[1718385225127,0.03421997,3398.3,3397.7,0.19186145]
[1718385225340,0.61108802,3398.8,3397.8,1.43344514]
[1718385225526,0.03441669,3398.7,3397.8,1.43344514]
[1718385226101,0.64550471,3398.7,3397.8,1.43344514]
[1718385226331,0.03441669,3398.7,3397.8,1.43344514]
[1718385226730,0.03441669,3398.7,3397.8,1.5959758]
[1718385228621,0.03441669,3398.7,3397.4,0.42630894]
[1718385228622,2.94257,3398.4,3397.4,0.42630894]
[1718385228844,0.61108802,3398.5,3397.5,1.43344514]
[1718385229068,0.03392479,3398.3,3397.5,1.43344514]
[1718385229210,0.64436527,3398.4,3397.5,1.43344514]
[1718385229410,0.03317888,3398.2,3397.5,1.43344514]
[1718385229610,0.03392479,3398.3,3397.5,1.43344514]
[1718385229808,0.03312969,3398.1,3397.6,0.44334451]
[1718385230033,0.61108802,3398.6,3397.6,0.44334451]
[1718385230034,0.03318208,3398.2,3397.6,0.44334451]
[1718385230244,0.03308369,3398.0,3397.6,0.44334451]
[1718385230419,0.03313289,3398.1,3397.6,0.44334451]
[1718385230621,0.0337313,3397.9,3397.6,0.44334451]
[1718385230823,0.03308143,3398.0,3397.6,0.44334451]
[1718385231027,0.03298304,3397.8,3397.6,0.44334451]
[1718385231224,3.55340802,3398.7,3397.6,0.44334451]
[1718385231444,1.04144314,3398.6,3397.5,1.43344514]
[1718385231642,1.65253116,3398.6,3397.5,1.43344514]
[1718385231814,0.03332737,3398.5,3397.5,1.43344514]
[1718385232229,0.03332737,3398.5,3397.6,0.05885885]
[1718385232574,0.91881337,3398.9,3397.6,0.05885885]
[1718385232575,0.61108802,3398.7,3397.7,1.43344514]
[1718385232877,0.03293547,3398.4,3397.7,1.43344514]
[1718385233015,0.03301594,3398.6,3397.7,1.43344514]
[1718385233333,0.61108802,3398.6,3397.7,1.43344514]
[1718385233650,0.03296676,3398.5,3397.7,1.43344514]
[1718385234159,0.61108802,3398.7,3397.7,1.43344514]
[1718385234460,0.61108802,3398.5,3397.7,1.43344514]
[1718385234817,0.03289523,3398.4,3397.7,1.43344514]
[1718385235272,0.03289523,3398.4,3397.3,3.0]
[1718385235481,0.64398325,3398.4,3397.4,1.43344514]
[1718385236065,2.94265,3398.3,3397.3,3.0]
[1718385236386,2.94297,3398.0,3396.7,3.1558]
[1718385236540,2.94297,3398.0,3396.8,4.43344514]
[1718385236740,0.0325535,3397.9,3396.8,4.43344514]
[1718385237278,2.9755535,3397.9,3396.8,4.43344514]
[1718385237487,0.74484249,3397.8,3396.8,4.43344514]
[1718385237641,3.68792249,3397.8,3396.8,4.43344514]
[1718385237842,0.03237493,3397.7,3396.8,4.43344514]
[1718385239855,3.55398802,3398.0,3396.8,4.43344514]
[1718385240055,0.03232572,3397.6,3396.8,4.43344514]
[1718385240288,3.55409802,3397.9,3396.9,0.75892451]
[1718385240587,2.94319,3397.7,3396.8,1.43344514]
[1718385240899,2.94334,3397.5,3396.1,3.2417]
[1718385241120,2.94351,3397.3,3396.2,1.43344514]
[1718385241249,0.6497948,3397.2,3396.2,1.43344514]
[1718385241650,0.03263134,3397.1,3396.3,0.05888093]
[1718385241850,0.03263134,3397.1,3396.4,1.43344514]
[1718385242087,0.61108802,3397.6,3396.5,0.05887365]
[1718385242267,0.03153863,3397.0,3396.6,1.43344514]
[1718385242462,0.61108802,3397.6,3396.7,0.05887366]
[1718385242777,0.45299014,3397.5,3396.8,1.43344514]
[1718385242977,0.03180035,3397.5,3396.8,1.43344514]
[1718385243322,0.03180035,3397.5,3397.0,3.1744]
[1718385243448,0.03180035,3397.5,3397.1,1.43344514]
[1718385243653,0.61108802,3397.9,3397.1,1.43344514]
[1718385243851,0.03252981,3397.4,3397.1,1.43344514]
[1718385244152,0.61108802,3397.9,3397.1,1.89422965]
[1718385244353,0.03280001,3397.8,3397.1,1.43344514]
[1718385244550,0.03280001,3397.8,3397.2,0.05886843]
[1718385244755,0.03280001,3397.8,3397.3,1.43344514]
[1718385244983,0.61108802,3398.2,3397.3,1.43344514]
[1718385245289,0.0322266,3397.7,3397.4,0.05886438]
[1718385245494,0.61108802,3398.2,3397.5,1.58267609]
[1718385245702,0.0321774,3397.6,3397.5,1.58267609]
[1718385245885,0.61108802,3398.2,3397.5,1.58267609]
[1718385246269,0.03242338,3398.1,3397.5,1.58267609]
[1718385247600,0.03242338,3398.1,3397.6,0.0588618]
[1718385247758,0.03242338,3398.1,3397.7,1.59759893]
[1718385247954,0.61108802,3398.3,3397.7,1.59759893]
[1718385248167,0.91881337,3398.4,3397.7,1.59759893]
[1718385248168,0.03284719,3398.2,3397.7,1.59759893]
[1718385248395,0.61108802,3398.3,3397.7,1.59759893]
[1718385248622,0.0327363,3398.1,3397.9,3.2093]
[1718385248914,0.03285467,3398.2,3398.0,1.97887047]
[1718385249076,0.61108802,3398.8,3398.0,1.97887047]
[1718385249261,0.61108802,3398.8,3398.0,1.92002074]
[1718385249460,0.61108802,3398.8,3398.1,1.06293207]
[1718385249708,0.61108802,3398.8,3398.2,1.43344514]
[1718385250296,0.61108802,3398.7,3398.3,0.0588448]
[1718385250485,0.61108802,3398.9,3398.4,1.98344514]
[1718385250655,0.61108802,3398.9,3398.6,2.546]
[1718385250856,0.61108802,3399.3,3398.7,4.93641249]
[1718385251056,0.63101902,3399.4,3398.8,0.05883395]
[1718385251256,0.019931,3399.4,3398.9,1.43344514]
[1718385251506,0.019931,3399.4,3399.0,0.55]
[1718385251707,0.019931,3399.4,3399.1,1.43344514]
[1718385252164,0.019931,3399.4,3398.7,3.44412856]
[1718385252359,0.019931,3399.4,3398.8,1.43344514]
[1718385252558,0.019931,3399.4,3398.9,0.05883667]
[1718385252787,0.019931,3399.4,3399.0,1.98344514]
[1718385253977,0.03164306,3399.3,3399.0,1.98344514]
[1718385254188,0.019931,3399.4,3399.1,0.19834451]
[1718385254387,0.019931,3399.4,3399.2,1.43344514]
[1718385255381,0.019931,3399.4,3398.8,3.0]
[1718385255581,0.03167472,3399.3,3398.9,1.43344514]
[1718385255987,0.019931,3399.4,3398.9,1.43344514]
[1718385256308,0.03153982,3399.2,3399.0,1.0585892]
[1718385256527,0.03141845,3399.3,3399.1,1.98344514]
[1718385256671,0.019931,3399.4,3399.2,0.05882716]
[1718385256870,0.019931,3399.4,3399.3,1.43344514]
[1718385258706,0.019931,3399.4,3399.3,1.98344514]
[1718385258918,0.019931,3399.4,3399.3,6.14472539]
[1718385259212,0.019931,3399.4,3399.3,9.14472539]
[1718385265447,0.019931,3399.4,3399.3,11.69072539]
[1718385267829,0.019931,3399.4,3399.3,13.45772539]
[1718385268212,3.11,3401.2,3399.3,13.45772539]
[1718385268414,3.11,3401.2,3399.9,2.546]
[1718385268651,0.02912565,3401.1,3400.0,5.04225687]
[1718385268878,3.11,3401.2,3400.0,4.98344514]
[1718385269348,2.96942565,3401.1,3400.0,4.43344514]
[1718385269547,2.9404,3400.9,3400.0,1.43344514]
[1718385269846,0.02970815,3400.8,3400.0,1.43344514]
[1718385270146,2.97021815,3400.8,3400.0,1.43344514]
[1718385270346,2.97021815,3400.8,3399.5,3.0]
[1718385270347,0.02970815,3400.8,3399.5,3.0]
[1718385270648,2.97020815,3400.8,3399.6,1.43344514]
[1718385270819,2.94059,3400.7,3399.6,1.43344514]
[1718385271020,2.94077,3400.5,3399.7,0.33595588]
[1718385271350,2.94077,3400.5,3399.7,1.43344514]
[1718385271557,0.02959785,3400.4,3399.7,1.43344514]
[1718385272452,0.02959785,3400.4,3399.8,1.43344514]
[1718385272622,0.90198257,3400.9,3399.8,1.43344514]
[1718385272623,2.94051,3400.8,3399.8,1.43344514]
[1718385272869,0.02952402,3400.3,3399.8,1.87678965]
[1718385273066,2.94051,3400.8,3399.8,1.87678965]
[1718385273285,0.02931551,3400.2,3399.8,1.87678965]
[1718385273594,2.94051,3400.8,3399.8,1.87678965]
[1718385273595,0.0292664,3400.1,3399.8,1.87678965]
[1718385273889,2.94051,3400.8,3399.8,1.87678965]
[1718385274192,0.67828926,3400.7,3399.8,1.87678965]
[1718385274391,2.9404,3400.9,3399.8,1.87678965]
[1718385274614,0.02951191,3400.6,3399.8,1.87678965]
[1718385274911,2.94057,3400.7,3399.8,1.87678965]
[1718385275122,0.02937342,3400.5,3399.8,1.43344514]
[1718385275293,2.94057,3400.7,3399.8,1.43344514]
[1718385275294,0.0291926,3400.6,3399.8,1.43344514]
[1718385275461,0.02909439,3400.4,3399.8,1.43344514]
[1718385275657,2.94057,3400.7,3399.8,1.43344514]
[1718385275897,0.02904528,3400.3,3399.8,1.43344514]
[1718385276063,3.528666,3400.7,3399.8,1.43344514]
[1718385276263,0.02899616,3400.2,3399.8,1.43344514]
[1718385276485,2.9405,3400.8,3399.8,1.43344514]
[1718385276698,0.02894704,3400.1,3399.8,1.43344514]
[1718385276898,2.9405,3400.8,3399.8,1.87678965]
[1718385277263,0.0292417,3400.7,3399.8,1.87678965]
[1718385278997,2.9698217,3400.7,3399.8,1.43344514]
[1718385280585,2.94093,3400.3,3399.3,3.2491]
[1718385280784,2.94093,3400.3,3399.3,1.43344514]
[1718385280785,0.02885561,3400.2,3399.3,1.43344514]
[1718385280983,2.9412,3400.0,3399.3,1.43344514]
[1718385281181,0.29698356,3400.1,3398.8,3.3645]
[1718385281383,2.94149,3399.7,3398.9,1.43344514]
[1718385281608,2.94137,3399.8,3398.9,1.43344514]
[1718385282106,0.02886537,3399.7,3398.9,4.43344514]
[1718385282283,0.02886537,3399.7,3399.0,0.77979451]
[1718385282468,2.94128,3399.9,3399.0,2.21323965]
[1718385282469,2.94126,3399.9,3399.0,2.21323965]
[1718385282678,0.02873709,3399.6,3399.0,5.21323965]
[1718385283006,2.94135,3399.8,3399.0,2.21323965]
[1718385283216,0.02868796,3399.5,3399.1,3.0]
[1718385283514,0.02878622,3399.7,3399.0,2.21323965]
[1718385283683,2.94128,3399.9,3399.0,2.21323965]
[1718385283888,0.02873709,3399.6,3399.0,2.21323965]
[1718385284099,3.86248536,3399.9,3399.0,2.21323965]
[1718385284304,0.0287072,3399.5,3399.0,1.43344514]
[1718385284509,2.94147,3399.7,3399.0,1.43344514]
[1718385284712,0.02854597,3399.4,3399.1,1.43344514]
[1718385284920,0.92120536,3399.9,3399.1,1.43344514]
[1718385285383,0.02888012,3399.8,3399.1,1.43344514]
[1718385285784,0.02888012,3399.8,3399.2,0.04673526]
[1718385285977,0.02888012,3399.8,3399.3,2.13146318]
[1718385286181,2.94072,3400.6,3399.3,2.13146318]
[1718385286182,0.46023636,3400.5,3399.3,5.13146318]
[1718385286579,0.02876652,3400.4,3399.3,5.13146318]
[1718385287682,2.94057,3400.7,3399.3,5.13146318]
[1718385287879,0.02880407,3400.3,3399.4,1.09468632]
[1718385288122,2.94066,3400.6,3399.5,1.98344514]
[1718385288294,0.02871271,3400.2,3399.5,4.98344514]
[1718385288496,2.94066,3400.6,3399.5,4.98344514]
[1718385288897,0.0288217,3400.5,3399.5,4.98344514]
[1718385289099,0.0288217,3400.5,3399.6,0.62261495]
[1718385289308,0.0288217,3400.5,3399.7,1.43344514]
[1718385291328,2.9696217,3400.5,3399.7,1.43344514]
[1718385291538,0.61108802,3400.4,3399.6,3.0]
[1718385291742,2.94109,3400.1,3399.3,3.0]
[1718385291959,1.06103833,3400.4,3399.3,3.0]
[1718385291960,2.94101,3400.2,3399.4,1.43344514]
[1718385292113,0.02837435,3400.0,3399.4,1.43344514]
[1718385292423,0.02833468,3399.9,3399.4,1.43344514]
[1718385292623,0.61108802,3400.3,3399.5,0.77028451]
[1718385292833,3.55193802,3400.4,3399.5,2.20372965]
[1718385293060,0.027943,3400.3,3399.5,2.20372965]
[1718385293362,0.027943,3400.3,3399.6,2.04227146]
[1718385293527,0.63903102,3400.3,3399.6,4.98344514]
[1718385293716,0.63903102,3400.3,3399.7,0.57537296]
[1718385293917,0.63903102,3400.3,3399.8,1.43344514]
[1718385295312,0.027943,3400.3,3399.8,1.43344514]
[1718385295513,0.61108802,3400.2,3399.8,1.43344514]
[1718385295825,0.02789387,3400.2,3399.8,1.43344514]
[1718385296018,0.61108802,3400.3,3399.9,0.50088181]
[1718385296224,0.02789387,3400.2,3399.9,0.50088181]
[1718385296434,0.61108802,3400.2,3399.9,0.50088181]
[1718385296823,0.02843293,3400.1,3399.9,0.50088181]
[1718385297511,0.63952095,3400.1,3399.9,0.50088181]
[1718385298752,0.63952095,3400.1,3400.0,0.1934327]
[1718385298973,0.02843293,3400.1,3400.0,4.70307784]
[1718385299248,0.61108802,3400.5,3400.0,7.70307784]
[1718385299456,0.61108802,3400.6,3400.1,1.07499596]
[1718385299624,0.61108802,3400.5,3400.2,1.43344514]
[1718385299828,0.61108802,3400.6,3400.2,1.43344514]
[1718385300039,0.61108802,3400.5,3400.3,0.87780738]
[1718385300430,0.61108802,3400.6,3400.4,1.43344514]
[1718385301247,0.61108802,3400.5,3400.4,1.43344514]
[1718385301446,0.91881337,3400.6,3400.1,3.0]
[1718385301659,0.61611767,3400.3,3400.1,4.43344514]
[1718385301830,0.91881337,3400.5,3400.1,0.44334451]
[1718385301831,0.61611767,3400.4,3400.1,0.44334451]
[1718385302034,0.61611767,3400.3,3399.7,3.0]
[1718385302357,0.61611767,3400.2,3399.8,1.43344514]
[1718385302886,0.61611767,3400.1,3398.9,0.61250406]
[1718385303074,0.61611767,3400.1,3399.0,1.43344514]
[1718385303075,0.61634723,3399.8,3399.0,1.43344514]
[1718385303215,0.61634723,3399.4,3399.0,1.43344514]
[1718385303413,0.61634723,3399.3,3399.0,1.43344514]
[1718385303651,1.5351606,3399.3,3398.4,3.1596]
[1718385303854,0.61634723,3399.1,3398.5,2.48040514]
[1718385304055,0.61634723,3399.2,3398.5,2.48040514]
[1718385304356,3.55821723,3399.2,3398.5,2.48040514]
[1718385304527,0.61634723,3399.1,3398.5,2.48040514]
[1718385304728,0.61634723,3399.0,3398.5,1.43344514]
[1718385305056,0.61634723,3398.9,3398.5,1.43344514]
[1718385305360,0.61634723,3399.1,3398.5,1.43344514]
[1718385305917,0.61634723,3398.9,3398.5,1.43344514]
[1718385306327,0.61634723,3399.0,3398.5,1.43344514]
[1718385306533,3.55870723,3398.7,3397.8,7.31]
[1718385306726,3.55875723,3398.6,3397.9,1.43344514]
[1718385306937,0.61634723,3398.5,3397.9,1.43344514]
[1718385307126,0.61634723,3398.6,3398.0,0.05885276]
[1718385307351,0.61634723,3398.6,3398.1,1.43344514]
[1718385307566,0.61634723,3399.0,3398.2,0.14922979]
[1718385307851,3.55850723,3398.9,3398.2,1.58267493]
[1718385308058,0.61634723,3398.8,3398.2,1.58267493]
[1718385308216,3.55876723,3398.6,3397.7,5.546]
[1718385308418,3.55876723,3398.6,3397.8,1.43344514]
[1718385308643,2.94256,3398.4,3397.8,1.43344514]
[1718385309252,2.94256,3398.4,3397.1,10.4202]
[1718385309561,2.94266,3398.3,3397.2,2.59318174]
[1718385309759,2.94257,3398.4,3397.2,2.59318174]
[1718385309921,2.94248,3398.5,3397.2,2.59318174]
[1718385310122,2.94256,3398.4,3397.3,2.546]
[1718385310361,2.94264,3398.3,3397.4,2.25838331]
[1718385310731,2.94256,3398.4,3397.4,2.25838331]
[1718385311062,2.94256,3398.4,3397.4,5.25838331]
[1718385311263,2.94266,3398.3,3397.5,3.0]
[1718385311427,2.94266,3398.3,3397.6,1.43344514]
[1718385312353,2.94256,3398.4,3397.6,1.95928347]
[1718385312560,2.94256,3398.4,3397.6,1.43344514]
[1718385312831,2.94248,3398.5,3397.6,1.43344514]
[1718385312832,2.94265,3398.3,3397.6,1.43344514]
[1718385314183,2.94248,3398.5,3397.6,1.43344514]
[1718385314343,2.94247,3398.5,3397.6,1.43344514]
[1718385314663,2.94238,3398.6,3397.6,1.43344514]
[1718385314664,2.94268,3398.3,3397.6,1.43344514]
[1718385315987,2.94273,3398.2,3397.6,1.43344514]
[1718385316181,2.94266,3398.3,3397.6,1.43344514]
[1718385317236,0.61634723,3398.9,3397.7,0.2846978]
[1718385317486,2.94249,3398.5,3397.8,1.43344514]
[1718385318992,2.94277,3398.2,3397.4,3.82493817]
[1718385319170,2.94277,3398.2,3393.5,61.52]
[1718385319171,2.94257,3398.4,3397.2,3.0]
[1718385319371,2.94257,3398.4,3397.2,4.43344514]
[1718385319372,2.94317,3397.7,3397.2,4.43344514]
[1718385319964,2.94317,3397.7,3396.6,5.5577]
[1718385319965,2.94317,3397.7,3396.6,3.0117]
[1718385320299,2.94359,3397.3,3396.7,1.43344514]
[1718385320456,2.94359,3397.3,3396.8,1.17551451]
[1718385320660,2.94359,3397.3,3396.8,2.60895965]
[1718385321707,2.94359,3397.3,3396.8,1.43344514]
[1718385321987,2.94393,3396.9,3396.5,7.31]
[1718385322160,2.94393,3396.9,3396.5,1.43344514]
[1718385322361,2.94379,3397.0,3396.5,1.43344514]
[1718385322558,2.94361,3397.2,3396.5,1.85998965]
[1718385322794,2.94375,3397.1,3396.5,1.85998965]
[1718385323395,2.94352,3397.3,3396.5,1.85998965]
[1718385323880,2.9432,3397.7,3396.6,1.49232468]
[1718385324089,2.94283,3398.1,3397.0,5.5674]
[1718385324285,0.61634723,3398.5,3397.1,5.04905093]
[1718385324486,2.94266,3398.3,3397.2,0.55]
[1718385324796,2.94266,3398.3,3397.3,1.43344514]
[1718385324997,2.943,3397.9,3397.3,1.43344514]
[1718385325202,2.94251,3398.5,3397.4,0.49901851]
[1718385325398,2.94297,3398.0,3397.4,0.49901851]
[1718385327029,2.94302,3397.9,3397.4,0.49901851]
[1718385327189,2.94326,3397.6,3396.6,2.8584]
[1718385327527,2.94326,3397.6,3396.7,4.43344514]
[1718385327896,2.94308,3397.8,3396.7,4.43344514]
[1718385328101,2.94259,3398.4,3396.8,0.83071051]
[1718385328334,2.94259,3398.4,3396.9,1.43344514]
[1718385328629,2.94284,3398.1,3397.0,0.05886752]
[1718385328812,2.94284,3398.1,3397.1,1.43344514]
[1718385329121,2.94282,3398.1,3397.1,1.43344514]
[1718385329489,2.94252,3398.5,3397.2,0.05886325]
[1718385329685,2.94265,3398.3,3397.4,2.9673]
[1718385329885,2.94265,3398.3,3397.5,1.43344514]
[1718385330294,2.94275,3398.2,3397.5,1.43344514]
[1718385332344,2.94265,3398.3,3397.5,1.43344514]
[1718385332497,2.94257,3398.4,3397.5,1.43344514]
[1718385332701,2.94257,3398.4,3397.6,0.4549976]
[1718385332931,2.94257,3398.4,3397.6,1.88844274]
[1718385333852,2.53,3398.9,3397.7,1.43344514]
[1718385334051,3.55830723,3399.1,3397.8,3.096]
[1718385334263,0.61634723,3399.1,3398.0,2.8363]
[1718385334435,0.61634723,3399.1,3398.1,1.98344514]
[1718385334747,0.61634723,3399.1,3398.1,4.98344514]
[1718385335816,2.94187,3399.2,3398.1,4.98344514]
[1718385336044,2.94187,3399.2,3398.2,0.83240755]
[1718385336340,2.94205,3399.0,3398.3,1.43344514]
[1718385336543,2.94134,3399.9,3398.4,0.05884669]
[1718385336842,2.94179,3399.3,3398.5,1.43344514]
[1718385337851,2.94188,3399.2,3398.5,1.43344514]
[1718385338004,2.94169,3399.4,3398.5,1.43344514]
[1718385338211,2.9416,3399.5,3398.6,0.53150304]
[1718385338552,2.9417,3399.4,3398.7,1.43344514]
[1718385339141,2.94158,3399.6,3398.8,2.84474117]
[1718385339345,2.94158,3399.6,3398.9,0.48096893]
[1718385340118,3.55719723,3400.4,3399.0,1.49088842]
[1718385340344,2.94091,3400.3,3399.1,2.546]
[1718385340580,2.941,3400.2,3399.2,1.43344514]
[1718385340760,2.941,3400.2,3399.2,4.43344514]
[1718385341056,2.94135,3399.8,3399.3,0.69794451]
[1718385341215,2.94135,3399.8,3399.2,1.43344514]
[1718385341548,2.941,3400.2,3399.2,1.43344514]
[1718385341549,2.94127,3399.9,3399.2,1.43344514]
[1718385341770,3.13634723,3400.5,3399.2,1.43344514]
[1718385341771,2.94084,3400.4,3399.2,1.43344514]
[1718385342278,0.03214851,3400.3,3399.2,1.43344514]
[1718385342824,2.94093,3400.3,3399.2,1.43344514]
[1718385343848,2.94101,3400.2,3399.2,1.43344514]
[1718385344247,2.94084,3400.4,3399.3,2.9619]
[1718385344459,2.94084,3400.4,3399.4,1.87297965]
[1718385344668,0.0321475,3400.3,3399.4,1.87297965]
[1718385344963,2.9730775,3400.3,3399.4,1.87297965]
[1718385345522,0.0321475,3400.3,3399.4,1.87297965]
[1718385345824,2.94066,3400.6,3399.5,0.54231253]
[1718385346172,2.94066,3400.6,3399.6,1.43344514]
[1718385346346,2.94066,3400.6,3399.7,0.05882153]
[1718385346536,0.03224456,3400.5,3399.8,1.43344514]
[1718385347048,0.03224456,3400.5,3400.1,2.546]
[1718385347235,0.03224456,3400.5,3400.3,2.7978]
[1718385347434,2.93963,3401.8,3400.4,1.49224992]
[1718385347660,2.93939,3402.1,3400.5,2.546]
[1718385347661,2.93944,3402.1,3400.5,2.546]
[1718385347861,2.93944,3402.1,3400.6,7.8228446]
[1718385347862,0.03095999,3401.7,3400.6,7.8228446]
[1718385348023,0.03095999,3401.7,3400.9,2.546]
[1718385348226,2.93944,3402.1,3401.0,4.74684464]
[1718385348431,0.02901041,3401.6,3401.0,4.74684464]
[1718385348723,2.93944,3402.1,3401.0,4.74684464]
[1718385349123,2.93964,3401.8,3401.0,4.74684464]
[1718385349361,2.93964,3401.8,3401.0,1.74684464]
[1718385349565,0.03065063,3401.7,3401.0,1.74684464]
[1718385350452,0.03065063,3401.7,3401.0,1.49224464]
[1718385350625,2.94042,3400.9,3400.6,2.7806]
[1718385350825,2.94042,3400.9,3400.2,0.54026211]
[1718385350826,5.8803,3401.2,3400.2,3.0551]
[1718385351059,5.646,3401.6,3400.3,1.43344514]
[1718385351060,0.03016029,3400.8,3400.3,1.43344514]
[1718385351272,5.84887,3401.8,3400.4,0.05881125]
[1718385351426,0.02812905,3400.7,3400.5,1.43344514]
[1718385351631,2.93999,3401.4,3400.5,1.43344514]
[1718385351843,2.94007,3401.3,3400.3,2.546]
[1718385352069,2.94055,3400.8,3400.1,3.0551]
[1718385352267,2.94024,3401.1,3399.6,2.9147]
[1718385352440,2.94076,3400.5,3399.7,1.43344514]
[1718385352779,0.6068548,3401.0,3399.8,2.60482158]
[1718385352780,0.03041725,3400.4,3399.8,2.60482158]
[1718385352949,0.03041725,3400.4,3399.9,1.43344514]
[1718385353284,2.94014,3401.2,3400.0,0.05881215]
[1718385353464,2.94014,3401.2,3400.1,1.43344514]
[1718385353641,2.93997,3401.4,3400.1,1.43344514]
[1718385353642,2.94031,3401.0,3400.1,1.43344514]
[1718385354033,0.03049449,3400.9,3400.1,1.43344514]
[1718385354843,2.94041,3400.9,3400.1,1.43344514]
[1718385355044,2.94081,3400.5,3399.9,3.0]
[1718385355245,2.94066,3400.6,3399.9,4.43344514]
[1718385355458,0.03009335,3400.4,3399.9,4.43344514]
[1718385355792,0.03003667,3400.3,3399.9,5.00824346]
[1718385355935,2.94066,3400.6,3399.9,5.00824346]
[1718385356253,0.02997999,3400.2,3399.9,5.00824346]
[1718385356454,2.94058,3400.7,3399.9,5.00824346]
[1718385356642,0.03238502,3400.1,3399.9,5.00824346]
[1718385356841,2.9404,3400.9,3399.6,2.9147]
[1718385356842,2.94066,3400.6,3399.7,3.0]
[1718385357048,2.9404,3400.9,3399.7,1.43344514]
[1718385357049,0.02989609,3400.0,3399.7,1.43344514]
[1718385357336,0.02998662,3399.9,3399.2,2.9525]
[1718385357570,2.94119,3400.0,3399.3,1.43344514]
[1718385357868,2.94093,3400.3,3399.3,1.43344514]
[1718385357869,0.02804995,3399.8,3399.3,1.43344514]
[1718385358066,0.02810258,3399.9,3399.3,2.12663965]
[1718385358259,0.02791529,3399.7,3399.4,0.05882924]
[1718385358477,0.02796793,3399.8,3399.5,1.43344514]
[1718385358633,0.02786265,3399.6,3399.5,1.43344514]
[1718385358968,2.94083,3400.4,3399.5,1.43344514]
[1718385359271,2.9405,3400.8,3399.6,0.05882577]
[1718385359474,0.0282312,3400.3,3399.9,2.546]
[1718385359680,2.94049,3400.8,3400.0,1.49226262]
[1718385359850,0.0278118,3400.2,3400.1,0.70596626]
[1718385360169,2.94031,3401.0,3400.1,2.1394114]
[1718385360372,2.9404,3400.9,3400.1,2.1394114]
[1718385360545,0.02845807,3400.9,3400.3,2.546]
[1718385360750,0.02845807,3400.9,3400.4,1.49225463]
[1718385360974,2.93996,3401.4,3400.5,0.40382546]
[1718385361137,0.02840547,3400.8,3400.6,3.0688]
[1718385361337,2.93996,3401.4,3400.6,3.0688]
[1718385361534,0.02835287,3400.7,3400.6,3.0688]
[1718385361785,2.93996,3401.4,3400.6,3.0688]
[1718385361982,2.93984,3401.6,3400.6,3.0688]
[1718385362287,2.9404,3400.9,3400.4,3.0]
[1718385362501,2.9404,3400.9,3400.1,3.62746626]
[1718385362502,2.9405,3400.8,3400.1,2.9215]
[1718385362774,2.94081,3400.5,3399.8,3.0]
[1718385363116,2.96908904,3400.8,3399.9,1.43344514]
[1718385363285,0.02837621,3400.4,3399.9,1.43344514]
[1718385363485,0.02837621,3400.4,3399.9,2.17708965]
[1718385363693,2.94076,3400.5,3399.9,2.17708965]